[Event "*** Titled Tuesday Blitz"]
[Site "Chess.com"]
[Date "2018.08.07"]
[Round "8"]
[White "djamir"]
[Black "DoctorSocrates"]
[Result "0-1"]
[WhiteElo "2638"]
[BlackElo "2561"]
[TimeControl "180+2"]
[EndTime "14:52:23 PDT"]
[Termination "DoctorSocrates won by resignation"]

1. e4 {[%clk 0:03:01.9]} 1... e6 {[%clk 0:02:54.8]} 2. d4 {[%clk 0:02:57.2]}
2... d5 {[%clk 0:02:56.7]} 3. Nd2 {[%clk 0:02:58.1]} 3... Nc6 {[%clk 0:02:56.6]}
4. Ngf3 {[%clk 0:02:57.5]} 4... Nf6 {[%clk 0:02:56.6]} 5. exd5 {[%clk
0:02:55.4]} 5... exd5 {[%clk 0:02:57]} 6. Bb5 {[%clk 0:02:56.3]} 6... Bd7 {[%clk
0:02:55.5]} 7. O-O {[%clk 0:02:54.2]} 7... Be7 {[%clk 0:02:53.9]} 8. c3 {[%clk
0:02:52.8]} 8... O-O {[%clk 0:02:52.5]} 9. Re1 {[%clk 0:02:54.1]} 9... Bd6
{[%clk 0:02:50.5]} 10. Nf1 {[%clk 0:02:46.3]} 10... Ne7 {[%clk 0:02:43.5]} 11.
Bd3 {[%clk 0:02:42.6]} 11... Bf5 {[%clk 0:02:38.3]} 12. Ng3 {[%clk 0:02:35.5]}
12... Bxg3 {[%clk 0:02:34.4]} 13. hxg3 {[%clk 0:02:34.9]} 13... Bxd3 {[%clk
0:02:35]} 14. Qxd3 {[%clk 0:02:36.8]} 14... Ne4 {[%clk 0:02:35.9]} 15. Ng5
{[%clk 0:02:27.5]} 15... Nxg5 {[%clk 0:01:52.2]} 16. Bxg5 {[%clk 0:02:29.4]}
16... f6 {[%clk 0:01:53.7]} 17. Bf4 {[%clk 0:01:59]} 17... Qd7 {[%clk 0:01:19]}
18. Re2 {[%clk 0:01:50.6]} 18... Ng6 {[%clk 0:01:18.1]} 19. Rae1 {[%clk
0:01:45.7]} 19... c6 {[%clk 0:01:18.8]} 20. Bd2 {[%clk 0:01:12.3]} 20... Rfe8
{[%clk 0:01:19]} 21. Kf1 {[%clk 0:01:13.2]} 21... Kf7 {[%clk 0:01:17.6]} 22.
Rxe8 {[%clk 0:01:05.8]} 22... Rxe8 {[%clk 0:01:19.5]} 23. Rxe8 {[%clk 0:01:07]}
23... Qxe8 {[%clk 0:01:19.7]} 24. Qf5 {[%clk 0:01:08]} 24... Qe6 {[%clk
0:01:19.8]} 25. Qh5 {[%clk 0:01:08.4]} 25... Qe4 {[%clk 0:01:17.4]} 26. Qd1
{[%clk 0:00:51]} 26... Qd3+ {[%clk 0:01:13]} 27. Kg1 {[%clk 0:00:52.2]} 27...
Ne7 {[%clk 0:01:04.1]} 28. Qh5+ {[%clk 0:00:51.2]} 28... Qg6 {[%clk 0:01:01.6]}
29. Qxg6+ {[%clk 0:00:46.9]} 29... Kxg6 {[%clk 0:01:00.1]} 30. Kf1 {[%clk
0:00:42.4]} 30... h6 {[%clk 0:01:00.4]} 31. Ke2 {[%clk 0:00:38.8]} 31... h5
{[%clk 0:01:01.9]} 32. Kf3 {[%clk 0:00:38.4]} 32... Kf5 {[%clk 0:01:03]} 33. Bf4
{[%clk 0:00:37.6]} 33... g5 {[%clk 0:01:02.4]} 34. Bd6 {[%clk 0:00:37.9]} 34...
Ng6 {[%clk 0:01:00.7]} 35. Ke2 {[%clk 0:00:39.1]} 35... Ke6 {[%clk 0:01:00.9]}
36. Bb8 {[%clk 0:00:38.9]} 36... a6 {[%clk 0:01:01.7]} 37. Kf3 {[%clk
0:00:38.3]} 37... Ne7 {[%clk 0:00:56.2]} 38. g4 {[%clk 0:00:36.4]} 38... h4
{[%clk 0:00:50.3]} 39. Bh2 {[%clk 0:00:30.2]} 39... f5 {[%clk 0:00:50.8]} 40.
Be5 {[%clk 0:00:26.5]} 40... Ng6 {[%clk 0:00:51.1]} 41. Bb8 {[%clk 0:00:27.4]}
41... Nh8 {[%clk 0:00:49.9]} 42. Be5 {[%clk 0:00:25.1]} 42... Nf7 {[%clk
0:00:50.7]} 43. gxf5+ {[%clk 0:00:21.8]} 43... Kxf5 {[%clk 0:00:48.4]} 44. g4+
{[%clk 0:00:23.1]} 44... hxg3 {[%clk 0:00:46.5]} 45. Bxg3 {[%clk 0:00:23.8]}
45... g4+ {[%clk 0:00:46.1]} 46. Ke3 {[%clk 0:00:24.7]} 46... Ng5 {[%clk
0:00:46.7]} 47. Bf4 {[%clk 0:00:25.6]} 47... Ne4 {[%clk 0:00:46.9]} 48. Bb8
{[%clk 0:00:27.3]} 48... Ng5 {[%clk 0:00:44.6]} 49. Bc7 {[%clk 0:00:27]} 49...
Nf3 {[%clk 0:00:45.9]} 50. Bb8 {[%clk 0:00:27.6]} 50... b5 {[%clk 0:00:47.4]}
51. Bd6 {[%clk 0:00:27.6]} 51... a5 {[%clk 0:00:47.7]} 52. Bc7 {[%clk
0:00:28.5]} 52... a4 {[%clk 0:00:48.7]} 53. b3 {[%clk 0:00:29.4]} 53... axb3
{[%clk 0:00:46.5]} 54. axb3 {[%clk 0:00:31.3]} 54... Ng5 {[%clk 0:00:48.3]} 55.
Bd8 {[%clk 0:00:31.9]} 55... Ne4 {[%clk 0:00:49.5]} 56. Ba5 {[%clk 0:00:33.1]}
56... Kg5 {[%clk 0:00:47.9]} 57. c4 {[%clk 0:00:33.7]} 57... Kh4 {[%clk
0:00:45.1]} 58. cxb5 {[%clk 0:00:32.9]} 58... cxb5 {[%clk 0:00:46.1]} 59. f3
{[%clk 0:00:29.5]} 59... gxf3 {[%clk 0:00:41.6]} 60. Kxf3 {[%clk 0:00:31.4]}
60... Kg5 {[%clk 0:00:41.3]} 61. Ke3 {[%clk 0:00:29.8]} 61... Kf5 {[%clk
0:00:43.2]} 62. Be1 {[%clk 0:00:29.6]} 62... Kg4 {[%clk 0:00:44.1]} 63. Ba5
{[%clk 0:00:29.9]} 63... Kg3 {[%clk 0:00:45]} 64. Bc7+ {[%clk 0:00:30.6]} 64...
Kg4 {[%clk 0:00:44.5]} 65. Ba5 {[%clk 0:00:31.7]} 65... Ng3 {[%clk 0:00:44.7]}
66. Be1 {[%clk 0:00:32]} 66... Nf5+ {[%clk 0:00:45.3]} 67. Kd3 {[%clk
0:00:30.9]} 67... Kf3 {[%clk 0:00:46.5]} 68. Bd2 {[%clk 0:00:32.4]} 68... Ng3
{[%clk 0:00:43.4]} 69. Be1 {[%clk 0:00:32.9]} 69... Nh5 {[%clk 0:00:42.4]} 70.
Bd2 {[%clk 0:00:33.7]} 70... Nf4+ {[%clk 0:00:43.9]} 71. Bxf4 {[%clk 0:00:18.3]}
71... Kxf4 {[%clk 0:00:44.3]} 72. Kc3 {[%clk 0:00:19.8]} 72... Ke3 {[%clk
0:00:45.2]} 73. Kb4 {[%clk 0:00:21.3]} 73... Kxd4 {[%clk 0:00:46.8]} 74. Kxb5
{[%clk 0:00:22.8]} 74... Kc3 {[%clk 0:00:46.4]} 75. Kc5 {[%clk 0:00:23.6]} 75...
d4 {[%clk 0:00:48.3]} 76. b4 {[%clk 0:00:25.5]} 76... d3 {[%clk 0:00:50.2]} 77.
b5 {[%clk 0:00:27.4]} 77... d2 {[%clk 0:00:52.1]} 78. b6 {[%clk 0:00:29.3]}
78... d1=Q {[%clk 0:00:54]} 79. Kc6 {[%clk 0:00:30.4]} 79... Kc4 {[%clk
0:00:48.2]} 80. Kc7 {[%clk 0:00:26.7]} 80... Kc5 {[%clk 0:00:46.7]} 81. b7
{[%clk 0:00:28]} 81... Qd6+ {[%clk 0:00:46.8]} 82. Kc8 {[%clk 0:00:27.6]} 82...
Qc6+ {[%clk 0:00:47.9]} 83. Kb8 {[%clk 0:00:26.3]} 83... Kb6 {[%clk 0:00:47.9]}
0-1

[Event "*** Titled Tuesday Blitz"]
[Site "Chess.com"]
[Date "2018.08.07"]
[Round "8"]
[White "Kimster98"]
[Black "timator"]
[Result "1/2-1/2"]
[WhiteElo "2506"]
[BlackElo "2375"]
[TimeControl "180+2"]
[EndTime "14:57:37 PDT"]
[Termination "Game drawn by 50-move rule"]

1. d4 {[%clk 0:03:01.9]} 1... Nf6 {[%clk 0:02:59.9]} 2. c4 {[%clk 0:03:01.8]}
2... e6 {[%clk 0:03:00.8]} 3. Nf3 {[%clk 0:03:02.9]} 3... b6 {[%clk 0:03:01.8]}
4. g3 {[%clk 0:03:04]} 4... Ba6 {[%clk 0:03:02.6]} 5. b3 {[%clk 0:03:04.9]} 5...
Bb4+ {[%clk 0:03:04.1]} 6. Bd2 {[%clk 0:03:06]} 6... Be7 {[%clk 0:03:06]} 7. Nc3
{[%clk 0:03:07.3]} 7... O-O {[%clk 0:03:06.5]} 8. Bg2 {[%clk 0:03:08.1]} 8... c6
{[%clk 0:03:07.8]} 9. e4 {[%clk 0:03:09.6]} 9... d5 {[%clk 0:03:09.3]} 10. exd5
{[%clk 0:03:11.5]} 10... cxd5 {[%clk 0:03:09.8]} 11. Ne5 {[%clk 0:02:56.2]}
11... Nbd7 {[%clk 0:03:03]} 12. O-O {[%clk 0:02:49.2]} 12... Rc8 {[%clk
0:03:03.5]} 13. Re1 {[%clk 0:02:41.8]} 13... dxc4 {[%clk 0:02:54.4]} 14. Nc6
{[%clk 0:02:37.9]} 14... Qe8 {[%clk 0:02:50.5]} 15. Nxa7 {[%clk 0:02:30.6]}
15... Rd8 {[%clk 0:02:40.6]} 16. Nc6 {[%clk 0:02:22.9]} 16... Rc8 {[%clk
0:02:40.7]} 17. Na7 {[%clk 0:02:24.2]} 17... Rd8 {[%clk 0:02:41.8]} 18. Nc6
{[%clk 0:01:56.8]} 18... Rc8 {[%clk 0:02:42.5]} 19. d5 {[%clk 0:01:58.4]} 19...
Nc5 {[%clk 0:02:33.3]} 20. Nxe7+ {[%clk 0:01:32.4]} 20... Qxe7 {[%clk
0:02:32.4]} 21. dxe6 {[%clk 0:01:32.1]} 21... Nxe6 {[%clk 0:02:33.5]} 22. bxc4
{[%clk 0:01:28.2]} 22... Bxc4 {[%clk 0:02:34.4]} 23. Qb1 {[%clk 0:00:46.6]}
23... b5 {[%clk 0:02:33.1]} 24. Ne4 {[%clk 0:00:44.9]} 24... Nxe4 {[%clk
0:02:19.6]} 25. Bxe4 {[%clk 0:00:45.1]} 25... h6 {[%clk 0:02:19.8]} 26. Bb4
{[%clk 0:00:45.9]} 26... Qf6 {[%clk 0:02:14.6]} 27. Bxf8 {[%clk 0:00:41.8]}
27... Rxf8 {[%clk 0:02:16.5]} 28. a4 {[%clk 0:00:27.4]} 28... Nd4 {[%clk
0:02:03.4]} 29. axb5 {[%clk 0:00:21.5]} 29... Bxb5 {[%clk 0:02:01]} 30. Ra8
{[%clk 0:00:22.1]} 30... Ne2+ {[%clk 0:01:20.8]} 31. Kg2 {[%clk 0:00:15.6]}
31... Rxa8 {[%clk 0:01:01.7]} 32. Bxa8 {[%clk 0:00:17.5]} 32... Nd4 {[%clk
0:00:51.6]} 33. Qe4 {[%clk 0:00:14.2]} 33... g6 {[%clk 0:00:46.8]} 34. Bd5
{[%clk 0:00:13.9]} 34... Kg7 {[%clk 0:00:44.5]} 35. Qe5 {[%clk 0:00:14.8]} 35...
Bc6 {[%clk 0:00:41.3]} 36. Qxf6+ {[%clk 0:00:14.7]} 36... Kxf6 {[%clk
0:00:42.2]} 37. Bxc6 {[%clk 0:00:16.3]} 37... Nxc6 {[%clk 0:00:44.1]} 38. Rc1
{[%clk 0:00:17.4]} 38... Ne5 {[%clk 0:00:44.2]} 39. Rc7 {[%clk 0:00:18.6]} 39...
Ke6 {[%clk 0:00:44.1]} 40. Ra7 {[%clk 0:00:19.7]} 40... h5 {[%clk 0:00:45]} 41.
Ra6+ {[%clk 0:00:21.3]} 41... Ke7 {[%clk 0:00:45.4]} 42. h3 {[%clk 0:00:22.6]}
42... Nd7 {[%clk 0:00:45.8]} 43. Ra7 {[%clk 0:00:23.8]} 43... Ke6 {[%clk
0:00:47]} 44. Ra6+ {[%clk 0:00:25.2]} 44... Ke7 {[%clk 0:00:47.5]} 45. Ra1
{[%clk 0:00:26.2]} 45... Kf6 {[%clk 0:00:48.3]} 46. Re1 {[%clk 0:00:28]} 46...
Ne5 {[%clk 0:00:49.4]} 47. f4 {[%clk 0:00:29.1]} 47... Nc6 {[%clk 0:00:50.7]}
48. Rc1 {[%clk 0:00:28.7]} 48... Nd4 {[%clk 0:00:51.2]} 49. Rc4 {[%clk 0:00:30]}
49... Nf5 {[%clk 0:00:52.4]} 50. Rc6+ {[%clk 0:00:31.2]} 50... Kg7 {[%clk
0:00:53.5]} 51. Ra6 {[%clk 0:00:32]} 51... Nd4 {[%clk 0:00:53.2]} 52. Kf2 {[%clk
0:00:32.6]} 52... Ne6 {[%clk 0:00:52.3]} 53. Kf3 {[%clk 0:00:31.8]} 53... Nd4+
{[%clk 0:00:52.7]} 54. Kf2 {[%clk 0:00:33]} 54... Ne6 {[%clk 0:00:53.3]} 55. Ke3
{[%clk 0:00:34.3]} 55... Kf6 {[%clk 0:00:51.9]} 56. Ke4 {[%clk 0:00:34.6]} 56...
Kg7 {[%clk 0:00:50.3]} 57. Rc6 {[%clk 0:00:35]} 57... Kf6 {[%clk 0:00:48.9]} 58.
Ra6 {[%clk 0:00:30.8]} 58... Kg7 {[%clk 0:00:49.6]} 59. Rd6 {[%clk 0:00:32.1]}
59... Kf6 {[%clk 0:00:50.5]} 60. Rc6 {[%clk 0:00:33.4]} 60... Kg7 {[%clk
0:00:51.1]} 61. Ke5 {[%clk 0:00:33.6]} 61... Nf8 {[%clk 0:00:50.7]} 62. Rd6
{[%clk 0:00:33.4]} 62... Nh7 {[%clk 0:00:44.1]} 63. g4 {[%clk 0:00:30.2]} 63...
hxg4 {[%clk 0:00:44.5]} 64. hxg4 {[%clk 0:00:32.1]} 64... Nf8 {[%clk 0:00:45.7]}
65. g5 {[%clk 0:00:27.9]} 65... Nh7 {[%clk 0:00:46.8]} 66. Rd7 {[%clk
0:00:25.8]} 66... Nf8 {[%clk 0:00:47.2]} 67. Rd6 {[%clk 0:00:27.2]} 67... Nh7
{[%clk 0:00:48.1]} 68. Rd7 {[%clk 0:00:28.8]} 68... Nf8 {[%clk 0:00:49.1]} 69.
Re7 {[%clk 0:00:30.3]} 69... Nh7 {[%clk 0:00:49.4]} 70. f5 {[%clk 0:00:23.3]}
70... gxf5 {[%clk 0:00:48.7]} 71. Kxf5 {[%clk 0:00:25.2]} 71... Nf8 {[%clk
0:00:49.8]} 72. Ra7 {[%clk 0:00:21.5]} 72... Ng6 {[%clk 0:00:51.1]} 73. Rb7
{[%clk 0:00:20.9]} 73... Nh4+ {[%clk 0:00:52.1]} 74. Kg4 {[%clk 0:00:21.9]}
74... Ng6 {[%clk 0:00:53.2]} 75. Rb5 {[%clk 0:00:23.5]} 75... Nf8 {[%clk
0:00:53.3]} 76. Kf5 {[%clk 0:00:24.8]} 76... Ng6 {[%clk 0:00:54.6]} 77. Rb6
{[%clk 0:00:25.7]} 77... Nh4+ {[%clk 0:00:55.2]} 78. Kg4 {[%clk 0:00:26.4]}
78... Ng6 {[%clk 0:00:56.3]} 79. Rf6 {[%clk 0:00:27.6]} 79... Ne5+ {[%clk
0:00:55.3]} 80. Kf5 {[%clk 0:00:28.9]} 80... Nd7 {[%clk 0:00:54.6]} 81. Rd6
{[%clk 0:00:29.7]} 81... Nf8 {[%clk 0:00:55.7]} 82. Rf6 {[%clk 0:00:29]} 82...
Nd7 {[%clk 0:00:54.1]} 83. Rc6 {[%clk 0:00:28.9]} 83... Nf8 {[%clk 0:00:55.6]}
84. Rd6 {[%clk 0:00:30.2]} 84... Nh7 {[%clk 0:00:33.9]} 85. Rb6 {[%clk
0:00:26.6]} 85... Nf8 {[%clk 0:00:34.5]} 86. Ra6 {[%clk 0:00:28]} 86... Nh7
{[%clk 0:00:33.7]} 87. Ra7 {[%clk 0:00:25.6]} 87... Nf8 {[%clk 0:00:34.7]} 88.
Ra1 {[%clk 0:00:22]} 88... Ng6 {[%clk 0:00:35.2]} 89. Rh1 {[%clk 0:00:22.1]}
89... Ne7+ {[%clk 0:00:35.9]} 90. Kg4 {[%clk 0:00:22]} 90... Nd5 {[%clk
0:00:36.3]} 91. Re1 {[%clk 0:00:21.1]} 91... Nc7 {[%clk 0:00:36.3]} 92. Kf5
{[%clk 0:00:21.1]} 92... Ne6 {[%clk 0:00:37.3]} 93. g6 {[%clk 0:00:17.6]} 93...
Nd4+ {[%clk 0:00:33.8]} 94. Ke4 {[%clk 0:00:18.2]} 94... Ne6 {[%clk 0:00:34.1]}
95. gxf7 {[%clk 0:00:17.1]} 95... Kxf7 {[%clk 0:00:36]} 96. Ke5 {[%clk
0:00:18.9]} 96... Ng7 {[%clk 0:00:37.4]} 97. Rf1+ {[%clk 0:00:20]} 97... Kg6
{[%clk 0:00:38.6]} 98. Rg1+ {[%clk 0:00:21.5]} 98... Kf7 {[%clk 0:00:40.1]} 99.
Ra1 {[%clk 0:00:23.1]} 99... Kg6 {[%clk 0:00:41.5]} 100. Ra6+ {[%clk 0:00:24.2]}
100... Kf7 {[%clk 0:00:41.9]} 101. Rb6 {[%clk 0:00:26.1]} 101... Nh5 {[%clk
0:00:39.5]} 102. Kf5 {[%clk 0:00:27]} 102... Ng7+ {[%clk 0:00:40.5]} 103. Kg5
{[%clk 0:00:28.6]} 103... Ne6+ {[%clk 0:00:41.5]} 104. Kg4 {[%clk 0:00:29.6]}
104... Kf6 {[%clk 0:00:42.6]} 105. Rb5 {[%clk 0:00:31.2]} 105... Ng7 {[%clk
0:00:43.3]} 106. Rc5 {[%clk 0:00:32.3]} 106... Ne6 {[%clk 0:00:43.9]} 107. Rf5+
{[%clk 0:00:33.7]} 107... Kg6 {[%clk 0:00:44.9]} 108. Re5 {[%clk 0:00:35]}
108... Kf6 {[%clk 0:00:46.3]} 109. Re4 {[%clk 0:00:36.4]} 109... Ng7 {[%clk
0:00:46.5]} 110. Ra4 {[%clk 0:00:36.6]} 110... Ne6 {[%clk 0:00:47.2]} 111. Kf3
{[%clk 0:00:38.1]} 111... Ke5 {[%clk 0:00:47.6]} 112. Ke3 {[%clk 0:00:39.6]}
112... Nc5 {[%clk 0:00:47.7]} 113. Rh4 {[%clk 0:00:40.7]} 113... Ne6 {[%clk
0:00:47.1]} 114. Rh5+ {[%clk 0:00:41.3]} 114... Kf6 {[%clk 0:00:48.4]} 115. Ke4
{[%clk 0:00:41.9]} 115... Ng5+ {[%clk 0:00:48]} 116. Kd5 {[%clk 0:00:42.9]}
116... Kf5 {[%clk 0:00:48.1]} 117. Rh8 {[%clk 0:00:43.4]} 117... Ne4 {[%clk
0:00:46.1]} 118. Rf8+ {[%clk 0:00:42.6]} 118... Nf6+ {[%clk 0:00:47.3]} 119. Kd6
{[%clk 0:00:44.3]} 119... Kg6 {[%clk 0:00:43.9]} 120. Ke6 {[%clk 0:00:44.5]}
120... Nh5 {[%clk 0:00:45]} 121. Rg8+ {[%clk 0:00:44.3]} 121... Ng7+ {[%clk
0:00:46]} 122. Ke7 {[%clk 0:00:45.6]} 122... Kh6 {[%clk 0:00:47.4]} 123. Kf7
{[%clk 0:00:36.4]} 123... Nh5 {[%clk 0:00:46.5]} 124. Rg4 {[%clk 0:00:36.6]}
124... Kh7 {[%clk 0:00:44.7]} 125. Rg5 {[%clk 0:00:28.2]} 125... Kh6 {[%clk
0:00:43]} 126. Rg4 {[%clk 0:00:29.5]} 126... Kh7 {[%clk 0:00:44.2]} 127. Rg6
{[%clk 0:00:27.5]} 127... Nf4 {[%clk 0:00:40]} 128. Rf6 {[%clk 0:00:24.5]}
128... Nh5 {[%clk 0:00:39.5]} 129. Rb6 {[%clk 0:00:23.2]} 129... Nf4 {[%clk
0:00:38.2]} 130. Rb4 {[%clk 0:00:18.7]} 130... Nh5 {[%clk 0:00:39]} 131. Rb6
{[%clk 0:00:19.4]} 131... Nf4 {[%clk 0:00:39.9]} 132. Rc6 {[%clk 0:00:19.9]}
132... Nh5 {[%clk 0:00:40.2]} 133. Ra6 {[%clk 0:00:21.1]} 133... Nf4 {[%clk
0:00:41.4]} 134. Kf6 {[%clk 0:00:22.7]} 134... Nh5+ {[%clk 0:00:37.6]} 135. Kg5
{[%clk 0:00:23.1]} 135... Ng7 {[%clk 0:00:38.4]} 136. Ra7 {[%clk 0:00:22.7]}
136... Kg8 {[%clk 0:00:39.8]} 137. Kg6 {[%clk 0:00:21.7]} 137... Ne8 {[%clk
0:00:41]} 138. Rd7 {[%clk 0:00:16.6]} 138... Kf8 {[%clk 0:00:41]} 139. Rh7
{[%clk 0:00:17.1]} 139... Kg8 {[%clk 0:00:40.9]} 140. Re7 {[%clk 0:00:18.4]}
140... Kf8 {[%clk 0:00:42.2]} 141. Re1 {[%clk 0:00:19.2]} 141... Nd6 {[%clk
0:00:39.4]} 142. Re6 {[%clk 0:00:20.1]} 142... Ne8 {[%clk 0:00:40.5]} 143. Re3
{[%clk 0:00:20.9]} 143... Nd6 {[%clk 0:00:41.7]} 144. Kf6 {[%clk 0:00:22.3]}
144... Ne8+ {[%clk 0:00:43]} 145. Ke6 {[%clk 0:00:23.9]} 145... Ng7+ {[%clk
0:00:44.2]} 146. Kd7 {[%clk 0:00:24.3]} 146... Kf7 {[%clk 0:00:45.6]} 147. Rf3+
{[%clk 0:00:25.7]} 147... Kg6 {[%clk 0:00:47]} 148. Rf1 {[%clk 0:00:25]} 148...
Nf5 {[%clk 0:00:46]} 149. Ke6 {[%clk 0:00:25.6]} 149... Ng7+ {[%clk 0:00:47]}
150. Ke5 {[%clk 0:00:26.8]} 150... Nh5 {[%clk 0:00:45.7]} 151. Rf3 {[%clk
0:00:26.6]} 151... Ng7 {[%clk 0:00:46.3]} 152. Rf8 {[%clk 0:00:26.6]} 152... Nh5
{[%clk 0:00:46.7]} 153. Rg8+ {[%clk 0:00:27.5]} 153... Kf7 {[%clk 0:00:48]} 154.
Rg5 {[%clk 0:00:28.4]} 154... Ng7 {[%clk 0:00:49.4]} 155. Rg2 {[%clk 0:00:27.6]}
155... Nh5 {[%clk 0:00:49.9]} 156. Rg1 {[%clk 0:00:26.2]} 156... Ng7 {[%clk
0:00:50.5]} 157. Rg5 {[%clk 0:00:27.7]} 157... Ne6 {[%clk 0:00:45.9]} 158. Rf5+
{[%clk 0:00:27.8]} 158... Ke7 {[%clk 0:00:47.2]} 159. Rf6 {[%clk 0:00:29.3]}
159... Ng7 {[%clk 0:00:48.1]} 160. Ra6 {[%clk 0:00:29.5]} 160... Kf7 {[%clk
0:00:49.1]} 161. Ra7+ {[%clk 0:00:29.6]} 161... Kg6 {[%clk 0:00:47.4]} 162. Rb7
{[%clk 0:00:31.5]} 162... Nh5 {[%clk 0:00:43]} 1/2-1/2

[Event "*** Titled Tuesday Blitz"]
[Site "Chess.com"]
[Date "2018.08.07"]
[Round "9"]
[White "ShadyH9"]
[Black "aa175"]
[Result "1-0"]
[WhiteElo "2240"]
[BlackElo "1917"]
[TimeControl "180+2"]
[EndTime "15:00:47 PDT"]
[Termination "ShadyH9 won by checkmate"]

1. d4 {[%clk 0:03:01.9]} 1... e5 {[%clk 0:02:59.7]} 2. dxe5 {[%clk 0:03:01.8]}
2... Nc6 {[%clk 0:02:53.7]} 3. Nf3 {[%clk 0:03:02.6]} 3... Qe7 {[%clk
0:02:51.7]} 4. e3 {[%clk 0:03:02.5]} 4... Nxe5 {[%clk 0:02:50.5]} 5. Be2 {[%clk
0:03:00.8]} 5... Nf6 {[%clk 0:02:50.1]} 6. O-O {[%clk 0:03:01]} 6... d6 {[%clk
0:02:49.1]} 7. c4 {[%clk 0:03:00.2]} 7... Nxf3+ {[%clk 0:02:49.5]} 8. Bxf3
{[%clk 0:03:00.2]} 8... g6 {[%clk 0:02:51.4]} 9. Nc3 {[%clk 0:03:00.7]} 9... Bg7
{[%clk 0:02:53.3]} 10. b3 {[%clk 0:02:58]} 10... Ne4 {[%clk 0:02:53.1]} 11. Nd5
{[%clk 0:02:48]} 11... Bxa1 {[%clk 0:02:55]} 12. Nxe7 {[%clk 0:02:47.5]} 12...
Nc3 {[%clk 0:02:54.1]} 13. Qc2 {[%clk 0:02:39.3]} 13... Kxe7 {[%clk 0:02:56]}
14. Bd2 {[%clk 0:02:36.3]} 14... Bf5 {[%clk 0:02:47.3]} 15. e4 {[%clk
0:02:34.2]} 15... Nxe4 {[%clk 0:02:35]} 16. Bxe4 {[%clk 0:02:34]} 16... Bxe4
{[%clk 0:02:30.9]} 17. Qxe4+ {[%clk 0:02:33.2]} 17... Be5 {[%clk 0:02:32.8]} 18.
f4 {[%clk 0:02:34.1]} 18... f5 {[%clk 0:02:34.7]} 19. Qe3 {[%clk 0:02:33.5]}
19... Ke6 {[%clk 0:02:30.7]} 20. Bc3 {[%clk 0:02:32.6]} 20... Rhe8 {[%clk
0:02:26.2]} 21. fxe5 {[%clk 0:02:32.6]} 21... dxe5 {[%clk 0:02:28.1]} 22. Qxe5+
{[%clk 0:02:33.4]} 22... Kd7 {[%clk 0:02:30]} 23. Rd1+ {[%clk 0:02:31.5]} 23...
Kc6 {[%clk 0:02:31.9]} 24. Qb5# {[%clk 0:02:31.6]} 1-0

[Event "*** Titled Tuesday Blitz"]
[Site "Chess.com"]
[Date "2018.08.07"]
[Round "9"]
[White "nitpicker"]
[Black "AlanZhang"]
[Result "1-0"]
[WhiteElo "2136"]
[BlackElo "1940"]
[TimeControl "180+2"]
[EndTime "15:00:59 PDT"]
[Termination "nitpicker won by resignation"]

1. d4 {[%clk 0:03:01.9]} 1... Nf6 {[%clk 0:03:00.2]} 2. c4 {[%clk 0:03:00.8]}
2... e6 {[%clk 0:03:01]} 3. g3 {[%clk 0:03:01.1]} 3... d5 {[%clk 0:03:01.3]} 4.
Nf3 {[%clk 0:03:01.7]} 4... Be7 {[%clk 0:03:01.4]} 5. Bg2 {[%clk 0:03:01.9]}
5... O-O {[%clk 0:02:58.6]} 6. O-O {[%clk 0:03:02.4]} 6... dxc4 {[%clk
0:02:59.5]} 7. Ne5 {[%clk 0:03:03.4]} 7... Nbd7 {[%clk 0:02:52]} 8. Nxc4 {[%clk
0:03:02.2]} 8... Nb6 {[%clk 0:02:52.7]} 9. Ne5 {[%clk 0:02:57.3]} 9... c5 {[%clk
0:02:48.5]} 10. dxc5 {[%clk 0:02:50.7]} 10... Bxc5 {[%clk 0:02:50.4]} 11. Nd3
{[%clk 0:02:13.4]} 11... Bd6 {[%clk 0:02:47.2]} 12. Nc3 {[%clk 0:02:13]} 12...
a6 {[%clk 0:02:44.3]} 13. Qb3 {[%clk 0:02:04.9]} 13... Qc7 {[%clk 0:02:41]} 14.
Bg5 {[%clk 0:01:52.5]} 14... Bd7 {[%clk 0:02:32.9]} 15. Rac1 {[%clk 0:01:43.9]}
15... Ba4 {[%clk 0:02:25.6]} 16. Nxa4 {[%clk 0:01:42.7]} 1-0

[Event "*** Titled Tuesday Blitz"]
[Site "Chess.com"]
[Date "2018.08.07"]
[Round "9"]
[White "Zaven_ChessMood"]
[Black "Tjktiger"]
[Result "1-0"]
[WhiteElo "2882"]
[BlackElo "2540"]
[TimeControl "180+2"]
[EndTime "15:01:50 PDT"]
[Termination "Zaven_ChessMood won by resignation"]

1. e4 {[%clk 0:03:01]} 1... d6 {[%clk 0:03:01.1]} 2. d4 {[%clk 0:03:01.2]} 2...
Nf6 {[%clk 0:03:03]} 3. Nc3 {[%clk 0:03:02.8]} 3... g6 {[%clk 0:03:04.9]} 4. f4
{[%clk 0:03:04.4]} 4... Bg7 {[%clk 0:03:06]} 5. Nf3 {[%clk 0:03:06.1]} 5... O-O
{[%clk 0:03:07.5]} 6. Bd3 {[%clk 0:03:07.6]} 6... Nc6 {[%clk 0:03:09]} 7. Qe2
{[%clk 0:03:06.3]} 7... Bg4 {[%clk 0:03:08]} 8. Be3 {[%clk 0:03:06.7]} 8... Nd7
{[%clk 0:03:07.8]} 9. Qf2 {[%clk 0:03:04.9]} 9... Bxf3 {[%clk 0:03:07.6]} 10.
gxf3 {[%clk 0:03:05.9]} 10... e5 {[%clk 0:03:09.1]} 11. d5 {[%clk 0:03:05.2]}
11... Nd4 {[%clk 0:03:09.8]} 12. h4 {[%clk 0:03:06.2]} 12... h5 {[%clk
0:03:00.6]} 13. O-O-O {[%clk 0:03:03.4]} 13... c5 {[%clk 0:03:00.7]} 14. dxc6
{[%clk 0:03:04.1]} 14... bxc6 {[%clk 0:03:01.5]} 15. f5 {[%clk 0:03:05]} 15...
Kh7 {[%clk 0:02:43.5]} 16. Rhg1 {[%clk 0:03:03.8]} 16... Rg8 {[%clk 0:02:38.7]}
17. f4 {[%clk 0:03:02.2]} 17... c5 {[%clk 0:02:35.7]} 18. fxg6+ {[%clk
0:03:00.6]} 18... fxg6 {[%clk 0:02:36.4]} 19. f5 {[%clk 0:03:02]} 19... gxf5
{[%clk 0:02:19.8]} 20. Bxd4 {[%clk 0:02:59.8]} 20... f4 {[%clk 0:02:08.8]} 21.
Be3 {[%clk 0:02:56.2]} 21... Nf6 {[%clk 0:02:08.4]} 22. Bd2 {[%clk 0:02:49.5]}
22... Ng4 {[%clk 0:02:09.4]} 23. Qf3 {[%clk 0:02:49.8]} 23... Qxh4 {[%clk
0:01:57.7]} 24. Rh1 {[%clk 0:02:49.7]} 24... Qg5 {[%clk 0:01:58.7]} 25. Bc4
{[%clk 0:02:46.7]} 25... Rgf8 {[%clk 0:01:58.2]} 26. Rdg1 {[%clk 0:02:40.7]}
26... Bh6 {[%clk 0:01:58.9]} 27. Be6 {[%clk 0:02:38.9]} 27... Nh2 {[%clk
0:01:54.6]} 28. Rxg5 {[%clk 0:02:33.9]} 28... Nxf3 {[%clk 0:01:55.6]} 29. Rgxh5
{[%clk 0:02:34.5]} 29... Rf6 {[%clk 0:01:57.5]} 30. Bf5+ {[%clk 0:02:35.5]}
30... Kg7 {[%clk 0:01:58.6]} 31. Nd5 {[%clk 0:02:36.7]} 1-0